[Event "Live Chess"]
[Site "Chess.com"]
[Date "2023.05.21"]
[Round "-"]
[White "MJMykh"]
[Black "mammamiatwo"]
[Result "0-1"]
[WhiteElo "1151"]
[BlackElo "1379"]
[TimeControl "300"]
[EndTime "3:44:15 PDT"]
[Termination "mammamiatwo won by checkmate"]

1. e4 {[%clk 0:04:58.5]} 1... e5 {[%clk 0:04:59]} 2. Nf3 {[%clk 0:04:56.5]} 2...
Qf6 {[%clk 0:04:56.6]} 3. Nc3 {[%clk 0:04:53.4]} 3... c6 {[%clk 0:04:54.8]} 4.
Bc4 {[%clk 0:04:50.6]} 4... h6 {[%clk 0:04:53.6]} 5. d3 {[%clk 0:04:48.7]} 5...
Bc5 {[%clk 0:04:51.8]} 6. O-O {[%clk 0:04:47.8]} 6... d6 {[%clk 0:04:50.2]} 7.
Na4 {[%clk 0:04:45.8]} 7... Bd4 {[%clk 0:04:45.9]} 8. Nxd4 {[%clk 0:04:43.9]}
8... exd4 {[%clk 0:04:44.6]} 9. c3 {[%clk 0:04:42.1]} 9... b5 {[%clk 0:04:41.4]}
10. b3 {[%clk 0:04:31.5]} 10... dxc3 {[%clk 0:04:31.3]} 11. Bxb5 {[%clk
0:04:20]} 11... cxb5 {[%clk 0:04:29.5]} 12. b4 {[%clk 0:04:07.5]} 12... bxa4
{[%clk 0:04:24.7]} 13. Qxa4+ {[%clk 0:04:06.4]} 13... Bd7 {[%clk 0:04:20]} 14.
Qb3 {[%clk 0:03:55.2]} 14... c2 {[%clk 0:04:16.8]} 15. Bb2 {[%clk 0:03:49.4]}
15... Qg6 {[%clk 0:04:10.8]} 16. Qxc2 {[%clk 0:03:44.6]} 16... Nf6 {[%clk
0:04:09]} 17. h3 {[%clk 0:03:43]} 17... Bxh3 {[%clk 0:04:05.9]} 18. g3 {[%clk
0:03:36.3]} 18... Bxf1 {[%clk 0:04:03.4]} 19. Rxf1 {[%clk 0:03:35.8]} 19... O-O
{[%clk 0:04:02.4]} 20. Bxf6 {[%clk 0:03:34.7]} 20... Qxf6 {[%clk 0:03:59.5]} 21.
Qc4 {[%clk 0:03:29.9]} 21... Nd7 {[%clk 0:03:57.6]} 22. b5 {[%clk 0:03:25.7]}
22... Ne5 {[%clk 0:03:51.6]} 23. Qd5 {[%clk 0:03:18.9]} 23... Nf3+ {[%clk
0:03:43.2]} 24. Kg2 {[%clk 0:03:17.4]} 24... Ng5 {[%clk 0:03:39.9]} 25. d4
{[%clk 0:03:13.4]} 25... Qf3+ {[%clk 0:03:36.2]} 26. Kg1 {[%clk 0:03:11.7]}
26... Nh3+ {[%clk 0:03:32.6]} 27. Kh2 {[%clk 0:03:10.7]} 27... Ng5 {[%clk
0:03:28.7]} 28. Kg1 {[%clk 0:03:07]} 28... Qg4 {[%clk 0:03:26.6]} 29. e5 {[%clk
0:03:00.5]} 29... Qh3 {[%clk 0:03:25.2]} 30. exd6 {[%clk 0:02:54.8]} 30... Rfd8
{[%clk 0:03:19.2]} 31. d7 {[%clk 0:02:50.3]} 31... Rxd7 {[%clk 0:03:12.3]} 32.
Qxa8+ {[%clk 0:02:43.3]} 32... Kh7 {[%clk 0:03:09.6]} 33. Qc6 {[%clk 0:02:28.8]}
33... Rc7 {[%clk 0:03:05.7]} 34. Qh1 {[%clk 0:02:17.1]} 34... Qg4 {[%clk
0:02:57]} 35. Qd5 {[%clk 0:01:49.8]} 35... Rd7 {[%clk 0:02:46.1]} 36. Qc5 {[%clk
0:01:27.3]} 36... Qh3 {[%clk 0:02:34.5]} 37. f4 {[%clk 0:01:17.3]} 37... Ne4
{[%clk 0:02:29.6]} 38. Qc2 {[%clk 0:00:51.8]} 38... Qxg3+ {[%clk 0:02:18.1]} 39.
Kh1 {[%clk 0:00:50.4]} 39... f5 {[%clk 0:02:08.2]} 40. Qg2 {[%clk 0:00:39.8]}
40... Qxg2+ {[%clk 0:02:02]} 41. Kxg2 {[%clk 0:00:38.3]} 41... Rxd4 {[%clk
0:02:01]} 42. Rb1 {[%clk 0:00:33.9]} 42... Rd2+ {[%clk 0:01:53.8]} 43. Kf3
{[%clk 0:00:32.5]} 43... Rxa2 {[%clk 0:01:50.7]} 44. b6 {[%clk 0:00:30.1]} 44...
axb6 {[%clk 0:01:49.3]} 45. Rxb6 {[%clk 0:00:29.6]} 45... Nc3 {[%clk 0:01:43.5]}
46. Rc6 {[%clk 0:00:22.2]} 46... Ra3 {[%clk 0:01:38.2]} 47. Kf2 {[%clk
0:00:17.3]} 47... Ne4+ {[%clk 0:01:34]} 48. Ke2 {[%clk 0:00:15.8]} 48... h5
{[%clk 0:01:29.4]} 49. Kd1 {[%clk 0:00:13.2]} 49... h4 {[%clk 0:01:28]} 50. Ke1
{[%clk 0:00:12.4]} 50... h3 {[%clk 0:01:26.7]} 51. Kf1 {[%clk 0:00:11.6]} 51...
h2 {[%clk 0:01:24.9]} 52. Kg2 {[%clk 0:00:10.8]} 52... Ra2+ {[%clk 0:01:23.6]}
53. Kh1 {[%clk 0:00:08.4]} 53... Ng3# {[%clk 0:01:22.1]} 0-1

[Event "Live Chess"]
[Site "Chess.com"]
[Date "2023.05.21"]
[Round "-"]
[White "Dhaydon19"]
[Black "ItsNot_Jasper"]
[Result "1-0"]
[WhiteElo "2697"]
[BlackElo "1375"]
[TimeControl "300"]
[EndTime "3:44:22 PDT"]
[Termination "Dhaydon19 won by resignation"]

1. e4 {[%clk 0:04:58.1]} 1... c6 {[%clk 0:04:55.8]} 2. Nf3 {[%clk 0:04:57.2]}
2... d5 {[%clk 0:04:55]} 3. Nc3 {[%clk 0:04:56.2]} 3... Bg4 {[%clk 0:04:54.1]}
4. d3 {[%clk 0:04:55]} 4... dxe4 {[%clk 0:04:50.9]} 5. Nxe4 {[%clk 0:04:53.8]}
5... Nf6 {[%clk 0:04:50]} 6. Ng3 {[%clk 0:04:51.7]} 6... e6 {[%clk 0:04:46]} 7.
Be2 {[%clk 0:04:50.9]} 7... Nbd7 {[%clk 0:04:44]} 8. O-O {[%clk 0:04:50.2]} 8...
Be7 {[%clk 0:04:43.1]} 9. Bf4 {[%clk 0:04:48.1]} 9... Qb6 {[%clk 0:04:40.8]} 10.
Qc1 {[%clk 0:04:46.3]} 10... O-O {[%clk 0:04:37.6]} 11. c3 {[%clk 0:04:44.8]}
11... Nh5 {[%clk 0:04:34.1]} 12. Be3 {[%clk 0:04:42.7]} 12... Nxg3 {[%clk
0:04:32.1]} 13. hxg3 {[%clk 0:04:40]} 1-0

[Event "Live Chess"]
[Site "Chess.com"]
[Date "2023.05.21"]
[Round "-"]
[White "Tiltador"]
[Black "NatashaRegan"]
[Result "0-1"]
[WhiteElo "864"]
[BlackElo "1726"]
[TimeControl "300"]
[EndTime "3:44:25 PDT"]
[Termination "NatashaRegan won by resignation"]

1. e4 {[%clk 0:04:56.2]} 1... Nf6 {[%clk 0:04:57.9]} 2. d3 {[%clk 0:04:53.7]}
2... e5 {[%clk 0:04:55.4]} 3. Nf3 {[%clk 0:04:52.6]} 3... Nc6 {[%clk 0:04:53.4]}
4. g3 {[%clk 0:04:50.4]} 4... d5 {[%clk 0:04:51.7]} 5. exd5 {[%clk 0:04:48.4]}
5... Nxd5 {[%clk 0:04:48]} 6. Bg2 {[%clk 0:04:47.1]} 6... Bg4 {[%clk 0:04:44.9]}
7. O-O {[%clk 0:04:45]} 7... Qf6 {[%clk 0:04:38.2]} 8. Bg5 {[%clk 0:04:37.6]}
8... Bxf3 {[%clk 0:04:31.7]} 9. Qxf3 {[%clk 0:04:28]} 9... Qxf3 {[%clk
0:04:17.7]} 10. Bxf3 {[%clk 0:04:24]} 10... Ndb4 {[%clk 0:04:15.5]} 11. Nc3
{[%clk 0:04:15.6]} 11... Nxc2 {[%clk 0:04:11]} 12. Bxc6+ {[%clk 0:04:13]} 12...
bxc6 {[%clk 0:04:09]} 13. Rab1 {[%clk 0:04:04]} 13... Nd4 {[%clk 0:04:03]} 14.
Ne4 {[%clk 0:03:55.3]} 14... f5 {[%clk 0:03:58]} 15. Nc3 {[%clk 0:03:44]} 15...
Nf3+ {[%clk 0:03:54.9]} 16. Kg2 {[%clk 0:03:36.7]} 16... Nxg5 {[%clk 0:03:53.7]}
17. a3 {[%clk 0:03:19.9]} 17... Bc5 {[%clk 0:03:48]} 18. b4 {[%clk 0:03:17.5]}
18... Bd4 {[%clk 0:03:46.3]} 19. Ne2 {[%clk 0:03:13.5]} 19... O-O-O {[%clk
0:03:42.6]} 20. Nxd4 {[%clk 0:03:11.9]} 20... Rxd4 {[%clk 0:03:40]} 21. Rfe1
{[%clk 0:03:07.1]} 21... Rd5 {[%clk 0:03:31.6]} 22. Rbd1 {[%clk 0:03:00.8]}
22... Rhd8 {[%clk 0:03:27.3]} 23. f4 {[%clk 0:02:55.2]} 23... exf4 {[%clk
0:03:24.3]} 24. gxf4 {[%clk 0:02:52.8]} 24... Nf7 {[%clk 0:03:19.3]} 25. Re7
{[%clk 0:02:49.6]} 25... R8d7 {[%clk 0:03:17.3]} 26. Re8+ {[%clk 0:02:46.7]}
26... Kb7 {[%clk 0:03:15.8]} 27. a4 {[%clk 0:02:38.2]} 27... Rxd3 {[%clk
0:03:12.3]} 28. Rxd3 {[%clk 0:02:34.9]} 28... Rxd3 {[%clk 0:03:09.8]} 29. b5
{[%clk 0:02:31.9]} 29... cxb5 {[%clk 0:03:03.3]} 30. axb5 {[%clk 0:02:29.4]}
30... Rd7 {[%clk 0:03:01.5]} 31. h4 {[%clk 0:02:25.6]} 31... Nd6 {[%clk
0:02:59.4]} 32. Re5 {[%clk 0:02:18.6]} 32... g6 {[%clk 0:02:55.7]} 33. Kf3
{[%clk 0:02:09.5]} 33... Ne4 {[%clk 0:02:53.5]} 34. Re6 {[%clk 0:01:45.9]} 34...
Rd3+ {[%clk 0:02:49.7]} 35. Ke2 {[%clk 0:01:41.6]} 35... Rd2+ {[%clk 0:02:45.9]}
36. Ke1 {[%clk 0:01:38.9]} 36... Rh2 {[%clk 0:02:43.2]} 37. Re7 {[%clk 0:01:25]}
37... Rxh4 {[%clk 0:02:38.9]} 38. Ke2 {[%clk 0:01:18.2]} 38... Rxf4 {[%clk
0:02:34.4]} 39. Ke3 {[%clk 0:01:15.1]} 39... Rh4 {[%clk 0:02:30.8]} 40. Rg7
{[%clk 0:01:08.5]} 40... Nd6 {[%clk 0:02:26]} 41. b6 {[%clk 0:01:02.7]} 41...
axb6 {[%clk 0:02:24]} 42. Kf3 {[%clk 0:01:00.4]} 42... b5 {[%clk 0:02:22.7]} 43.
Kg3 {[%clk 0:00:59.3]} 43... Rg4+ {[%clk 0:02:19.4]} 44. Kh3 {[%clk 0:00:56.7]}
44... h5 {[%clk 0:02:18.1]} 45. Rd7 {[%clk 0:00:51.8]} 45... f4 {[%clk
0:02:15.2]} 46. Rd8 {[%clk 0:00:41.8]} 46... f3 {[%clk 0:02:12.2]} 47. Rf8
{[%clk 0:00:40.6]} 47... Nf5 {[%clk 0:02:06.9]} 48. Kh2 {[%clk 0:00:28.7]} 48...
f2 {[%clk 0:01:57]} 0-1

[Event "Live Chess"]
[Site "Chess.com"]
[Date "2023.05.21"]
[Round "-"]
[White "sanjesh_ananda"]
[Black "f4nomore"]
[Result "0-1"]
[WhiteElo "1213"]
[BlackElo "1416"]
[TimeControl "300"]
[EndTime "3:44:30 PDT"]
[Termination "f4nomore won on time"]

1. e4 {[%clk 0:04:55]} 1... g6 {[%clk 0:04:59.9]} 2. d4 {[%clk 0:04:52.4]} 2...
Bg7 {[%clk 0:04:59.8]} 3. e5 {[%clk 0:04:47.6]} 3... d6 {[%clk 0:04:59.7]} 4.
Nf3 {[%clk 0:04:44.7]} 4... Nc6 {[%clk 0:04:57.3]} 5. Bb5 {[%clk 0:04:32.9]}
5... Bd7 {[%clk 0:04:54.9]} 6. Bxc6 {[%clk 0:04:25.6]} 6... Bxc6 {[%clk
0:04:52.9]} 7. exd6 {[%clk 0:04:16.9]} 7... cxd6 {[%clk 0:04:49.5]} 8. O-O
{[%clk 0:04:14.1]} 8... e6 {[%clk 0:04:47.9]} 9. Bg5 {[%clk 0:04:00.5]} 9... Ne7
{[%clk 0:04:36.4]} 10. c4 {[%clk 0:03:56.7]} 10... O-O {[%clk 0:04:33.6]} 11. d5
{[%clk 0:03:47.8]} 11... exd5 {[%clk 0:04:30.2]} 12. cxd5 {[%clk 0:03:44.1]}
12... Bb5 {[%clk 0:04:28.1]} 13. Re1 {[%clk 0:03:38.4]} 13... f6 {[%clk
0:04:25.2]} 14. Bf4 {[%clk 0:03:17.1]} 14... Nf5 {[%clk 0:04:14.6]} 15. Nc3
{[%clk 0:03:12]} 15... Ba6 {[%clk 0:04:11.2]} 16. Ne4 {[%clk 0:02:53.1]} 16...
Qb6 {[%clk 0:03:59.7]} 17. b3 {[%clk 0:02:37.5]} 17... Rad8 {[%clk 0:03:55.5]}
18. Rc1 {[%clk 0:02:34.2]} 18... g5 {[%clk 0:03:37.5]} 19. Bg3 {[%clk
0:02:31.7]} 19... Nxg3 {[%clk 0:03:32]} 20. hxg3 {[%clk 0:02:27.3]} 20... h6
{[%clk 0:03:30.6]} 21. Nfd2 {[%clk 0:02:06.7]} 21... f5 {[%clk 0:03:25.2]} 22.
Nc3 {[%clk 0:01:53.3]} 22... Qb4 {[%clk 0:03:20.6]} 23. Ncb1 {[%clk 0:01:37.8]}
23... Qd4 {[%clk 0:02:59.4]} 24. Rc7 {[%clk 0:00:47.4]} 24... f4 {[%clk
0:02:44.3]} 25. Ree7 {[%clk 0:00:42.9]} 25... fxg3 {[%clk 0:02:33.2]} 26. Rxg7+
{[%clk 0:00:41.4]} 26... Qxg7 {[%clk 0:02:31.5]} 27. Rxg7+ {[%clk 0:00:39.9]}
27... Kxg7 {[%clk 0:02:30]} 28. fxg3 {[%clk 0:00:35.4]} 28... Rf7 {[%clk
0:02:26.2]} 29. Qc2 {[%clk 0:00:25.9]} 29... Rdf8 {[%clk 0:02:22.8]} 30. Qc3+
{[%clk 0:00:21.7]} 30... Kg6 {[%clk 0:02:19.9]} 31. Kh2 {[%clk 0:00:16.7]} 31...
b6 {[%clk 0:02:09.1]} 32. Qc6 {[%clk 0:00:10.2]} 32... Rf6 {[%clk 0:02:04.2]}
33. Qa4 {[%clk 0:00:06.8]} 33... Bb7 {[%clk 0:02:01.3]} 34. Qe4+ {[%clk
0:00:03.9]} 34... Kg7 {[%clk 0:01:55.7]} 35. Nf3 {[%clk 0:00:02.6]} 35... Rf5
{[%clk 0:01:51.4]} 36. Qe7+ {[%clk 0:00:00.2]} 36... R8f7 {[%clk 0:01:49]} 0-1

[Event "Live Chess"]
[Site "Chess.com"]
[Date "2023.05.21"]
[Round "-"]
[White "Tushinskiy"]
[Black "McSlash1"]
[Result "1-0"]
[WhiteElo "2196"]
[BlackElo "2017"]
[TimeControl "300"]
[EndTime "3:44:33 PDT"]
[Termination "Tushinskiy won by resignation"]

1. d4 {[%clk 0:04:56.5]} 1... Nf6 {[%clk 0:04:58.8]} 2. c3 {[%clk 0:04:56.4]}
2... g6 {[%clk 0:04:58.4]} 3. Nf3 {[%clk 0:04:55.5]} 3... d5 {[%clk 0:04:58]} 4.
Bg5 {[%clk 0:04:54.9]} 4... Bg7 {[%clk 0:04:57.2]} 5. Nbd2 {[%clk 0:04:54.2]}
5... h6 {[%clk 0:04:56.8]} 6. Bh4 {[%clk 0:04:53.2]} 6... O-O {[%clk 0:04:56.4]}
7. e3 {[%clk 0:04:52.7]} 7... c5 {[%clk 0:04:55.7]} 8. Bd3 {[%clk 0:04:52.1]}
8... c4 {[%clk 0:04:54.8]} 9. Bc2 {[%clk 0:04:51.1]} 9... Nc6 {[%clk 0:04:54.6]}
10. Qe2 {[%clk 0:04:50.3]} 10... Nh5 {[%clk 0:04:48.3]} 11. Bg3 {[%clk
0:04:48.4]} 11... Nxg3 {[%clk 0:04:47]} 12. hxg3 {[%clk 0:04:48.3]} 12... e5
{[%clk 0:04:45.7]} 13. dxe5 {[%clk 0:04:47.3]} 13... Bg4 {[%clk 0:04:41.1]} 14.
O-O-O {[%clk 0:04:42.7]} 14... Nxe5 {[%clk 0:04:39.2]} 15. Qf1 {[%clk 0:04:41]}
15... Nd3+ {[%clk 0:04:33.4]} 16. Bxd3 {[%clk 0:04:39.7]} 16... cxd3 {[%clk
0:04:33.3]} 17. Qxd3 {[%clk 0:04:39.2]} 17... Bf5 {[%clk 0:04:32.9]} 18. Qb5
{[%clk 0:04:37.1]} 18... a6 {[%clk 0:04:29.3]} 19. Qb3 {[%clk 0:04:34.2]} 19...
a5 {[%clk 0:04:25.7]} 20. Nd4 {[%clk 0:04:33.3]} 20... a4 {[%clk 0:04:24]} 21.
Qb4 {[%clk 0:04:32.5]} 21... Bd7 {[%clk 0:04:21.4]} 22. N2f3 {[%clk 0:04:27.6]}
22... Re8 {[%clk 0:04:18.1]} 23. Nc2 {[%clk 0:04:21.7]} 23... Bf8 {[%clk
0:04:17.5]} 24. Qxb7 {[%clk 0:04:17.3]} 24... Rb8 {[%clk 0:04:17]} 25. Qxd5
{[%clk 0:04:16]} 25... Qb6 {[%clk 0:04:08]} 26. Qxd7 {[%clk 0:03:48.2]} 26...
Qxb2+ {[%clk 0:04:05.9]} 27. Kd2 {[%clk 0:03:47.7]} 27... Red8 {[%clk
0:04:05.4]} 28. Qxd8 {[%clk 0:03:47.1]} 28... Rxd8+ {[%clk 0:04:05.3]} 29. Nd4
{[%clk 0:03:46.4]} 29... Rc8 {[%clk 0:03:57.3]} 30. Ne2 {[%clk 0:03:43.4]} 30...
Bg7 {[%clk 0:03:53.2]} 31. Nd4 {[%clk 0:03:40.4]} 31... Qxc3+ {[%clk 0:03:50]}
32. Ke2 {[%clk 0:03:39.5]} 32... Qc4+ {[%clk 0:03:37.3]} 33. Rd3 {[%clk
0:03:32]} 33... Qxa2 {[%clk 0:03:30.7]} 34. Rd2 {[%clk 0:03:30]} 34... Bxd4
{[%clk 0:03:22.4]} 35. Nxd4 {[%clk 0:03:29.9]} 35... Qc4+ {[%clk 0:03:21.6]} 36.
Kf3 {[%clk 0:03:28.5]} 36... a3 {[%clk 0:03:19.1]} 37. Ra1 {[%clk 0:03:27.4]}
37... Ra8 {[%clk 0:03:16.7]} 38. Raa2 {[%clk 0:03:26]} 38... Qb4 {[%clk
0:03:06]} 39. g4 {[%clk 0:03:22.3]} 39... Kg7 {[%clk 0:02:54.1]} 40. Ke2 {[%clk
0:03:09.3]} 40... Re8 {[%clk 0:02:43.3]} 41. g3 {[%clk 0:03:06.8]} 41... Qa4
{[%clk 0:02:37.7]} 42. Rd3 {[%clk 0:03:00]} 42... Qd7 {[%clk 0:02:22.6]} 43.
Nf5+ {[%clk 0:02:54.1]} 1-0

[Event "Live Chess"]
[Site "Chess.com"]
[Date "2023.05.21"]
[Round "-"]
[White "Brooms1989"]
[Black "lightningorderyt"]
[Result "1-0"]
[WhiteElo "1132"]
[BlackElo "517"]
[TimeControl "300"]
[EndTime "3:44:40 PDT"]
[Termination "Brooms1989 won on time"]

1. e4 {[%clk 0:04:57]} 1... e5 {[%clk 0:04:59.9]} 2. Nc3 {[%clk 0:04:53.9]} 2...
Nf6 {[%clk 0:04:59.8]} 3. f4 {[%clk 0:04:52.3]} 3... d6 {[%clk 0:04:56.6]} 4.
fxe5 {[%clk 0:04:51]} 4... dxe5 {[%clk 0:04:54.4]} 5. Nf3 {[%clk 0:04:50.4]}
5... Qd6 {[%clk 0:04:45.1]} 6. d4 {[%clk 0:04:38]} 6... Bg4 {[%clk 0:03:58.6]}
7. dxe5 {[%clk 0:04:00.4]} 7... Qxd1+ {[%clk 0:03:45]} 8. Nxd1 {[%clk
0:04:00.3]} 8... Nxe4 {[%clk 0:03:41.8]} 9. h3 {[%clk 0:03:56.2]} 9... Bh5
{[%clk 0:03:23.5]} 10. Bd3 {[%clk 0:03:46.1]} 10... Ng3 {[%clk 0:03:17.7]} 11.
Rg1 {[%clk 0:03:41.9]} 11... Bxf3 {[%clk 0:03:04.4]} 12. gxf3 {[%clk 0:03:38.9]}
12... Nh5 {[%clk 0:02:47.1]} 13. Be4 {[%clk 0:03:36]} 13... Bc5 {[%clk
0:02:27.3]} 14. Rg5 {[%clk 0:03:27.4]} 14... g6 {[%clk 0:02:18.1]} 15. Bxb7
{[%clk 0:03:09.2]} 15... h6 {[%clk 0:02:05]} 16. Rg2 {[%clk 0:03:03.9]} 16...
Nf4 {[%clk 0:01:58.8]} 17. Bxf4 {[%clk 0:03:01.6]} 17... g5 {[%clk 0:01:28.8]}
18. Bh2 {[%clk 0:02:58.3]} 18... O-O {[%clk 0:01:20.6]} 19. Bxa8 {[%clk
0:02:53.2]} 19... Nd7 {[%clk 0:01:15.8]} 20. Bd5 {[%clk 0:02:44.9]} 20... Nxe5
{[%clk 0:01:09.8]} 21. Bxe5 {[%clk 0:02:40.4]} 21... Re8 {[%clk 0:01:00.5]} 22.
Re2 {[%clk 0:02:38.8]} 22... Rxe5 {[%clk 0:00:22.5]} 23. Rxe5 {[%clk 0:02:36.3]}
23... g4 {[%clk 0:00:19.4]} 24. Bxf7+ {[%clk 0:02:34.5]} 24... Kxf7 {[%clk
0:00:18.2]} 25. Rxc5 {[%clk 0:02:34.1]} 25... gxh3 {[%clk 0:00:15.6]} 26. Rh5
{[%clk 0:02:33.1]} 1-0

[Event "Live Chess"]
[Site "Chess.com"]
[Date "2023.05.21"]
[Round "-"]
[White "SupremeTactician"]
[Black "wot-not"]
[Result "1/2-1/2"]
[WhiteElo "2208"]
[BlackElo "1578"]
[TimeControl "300"]
[EndTime "3:44:53 PDT"]
[Termination "Game drawn by agreement"]

1. e4 {[%clk 0:04:57.2]} 1... e6 {[%clk 0:04:57.5]} 2. d4 {[%clk 0:04:56.2]}
2... d5 {[%clk 0:04:56.5]} 3. Nd2 {[%clk 0:04:53.2]} 3... Nc6 {[%clk 0:04:45.2]}
4. c3 {[%clk 0:04:51.5]} 4... e5 {[%clk 0:04:41.4]} 5. Ngf3 {[%clk 0:04:48.6]}
5... exd4 {[%clk 0:04:39.5]} 6. cxd4 {[%clk 0:04:48.5]} 6... dxe4 {[%clk
0:04:37.1]} 7. Nxe4 {[%clk 0:04:47.3]} 7... Nf6 {[%clk 0:04:35.6]} 8. Nxf6+
{[%clk 0:04:46.4]} 8... Qxf6 {[%clk 0:04:34.2]} 9. Be3 {[%clk 0:04:46.2]} 9...
Bb4+ {[%clk 0:04:32.1]} 10. Bd2 {[%clk 0:04:44.1]} 10... Bxd2+ {[%clk
0:04:26.9]} 11. Qxd2 {[%clk 0:04:43.3]} 11... O-O {[%clk 0:04:25.3]} 12. Be2
{[%clk 0:04:42.6]} 12... Bg4 {[%clk 0:04:08.7]} 13. O-O {[%clk 0:04:35.8]} 13...
Bxf3 {[%clk 0:04:05.1]} 14. Bxf3 {[%clk 0:04:35.7]} 14... Qxd4 {[%clk
0:03:55.9]} 15. Qxd4 {[%clk 0:04:32.7]} 15... Nxd4 {[%clk 0:03:54.8]} 16. Bxb7
{[%clk 0:04:32.2]} 16... Rab8 {[%clk 0:03:50.5]} 17. Bd5 {[%clk 0:04:30.5]}
17... Rxb2 {[%clk 0:03:45.1]} 18. Rfd1 {[%clk 0:04:29.6]} 18... Ne2+ {[%clk
0:03:37.3]} 19. Kf1 {[%clk 0:04:28.6]} 19... Nc3 {[%clk 0:03:36.1]} 20. Rd3
{[%clk 0:04:26.7]} 20... Nxd5 {[%clk 0:03:33.8]} 21. Rxd5 {[%clk 0:04:26.6]}
1/2-1/2

[Event "Live Chess"]
[Site "Chess.com"]
[Date "2023.05.21"]
[Round "-"]
[White "seasidecastle27"]
[Black "Davidagye"]
[Result "0-1"]
[WhiteElo "1859"]
[BlackElo "1684"]
[TimeControl "300"]
[EndTime "3:45:05 PDT"]
[Termination "Davidagye won on time"]

1. d4 {[%clk 0:04:57.9]} 1... Nf6 {[%clk 0:04:58.4]} 2. Nf3 {[%clk 0:04:56.9]}
2... e6 {[%clk 0:04:54.2]} 3. Bg5 {[%clk 0:04:54.6]} 3... c5 {[%clk 0:04:46.8]}
4. e3 {[%clk 0:04:53.3]} 4... Nc6 {[%clk 0:04:44]} 5. Nbd2 {[%clk 0:04:51.3]}
5... d5 {[%clk 0:04:42.1]} 6. c3 {[%clk 0:04:48]} 6... Bd6 {[%clk 0:04:40.1]} 7.
Bd3 {[%clk 0:04:45.7]} 7... h6 {[%clk 0:04:35.4]} 8. Bh4 {[%clk 0:04:43.7]} 8...
O-O {[%clk 0:04:31.1]} 9. Qe2 {[%clk 0:04:39.4]} 9... Re8 {[%clk 0:04:25]} 10.
e4 {[%clk 0:04:28.9]} 10... dxe4 {[%clk 0:04:20.6]} 11. Nxe4 {[%clk 0:04:26.9]}
11... Be7 {[%clk 0:04:16.8]} 12. Nxc5 {[%clk 0:04:20.6]} 12... Bxc5 {[%clk
0:04:13.6]} 13. dxc5 {[%clk 0:04:18.7]} 13... e5 {[%clk 0:04:12]} 14. O-O-O
{[%clk 0:04:07.8]} 14... Bg4 {[%clk 0:03:57.1]} 15. Bxf6 {[%clk 0:04:00.7]}
15... Qxf6 {[%clk 0:03:52]} 16. Qe4 {[%clk 0:03:57.7]} 16... Bxf3 {[%clk
0:03:42.9]} 17. gxf3 {[%clk 0:03:52.9]} 17... g6 {[%clk 0:03:38.2]} 18. h4
{[%clk 0:03:47]} 18... Rad8 {[%clk 0:03:33.5]} 19. h5 {[%clk 0:03:43.2]} 19...
Kh7 {[%clk 0:03:28.8]} 20. hxg6+ {[%clk 0:03:38.5]} 20... fxg6 {[%clk
0:03:27.1]} 21. Rdg1 {[%clk 0:03:32.2]} 21... Re6 {[%clk 0:03:24.3]} 22. Bc4
{[%clk 0:03:15.5]} 22... Re7 {[%clk 0:03:17.7]} 23. Rg4 {[%clk 0:03:08.9]} 23...
Rf8 {[%clk 0:03:14.9]} 24. Rgh4 {[%clk 0:03:01.8]} 24... Qg5+ {[%clk 0:03:01.5]}
25. Kc2 {[%clk 0:02:38.9]} 25... Rd7 {[%clk 0:02:52.8]} 26. Rxh6+ {[%clk
0:02:35.7]} 26... Qxh6 {[%clk 0:02:51.6]} 27. Rxh6+ {[%clk 0:02:32.8]} 27...
Kxh6 {[%clk 0:02:50.6]} 28. Bd3 {[%clk 0:02:27.8]} 28... Ne7 {[%clk 0:02:44.3]}
29. b4 {[%clk 0:02:11.6]} 29... Rf4 {[%clk 0:02:42.1]} 30. Qxe5 {[%clk
0:02:08.1]} 30... Rxf3 {[%clk 0:02:37.9]} 31. Qh2+ {[%clk 0:01:57.1]} 31... Kg7
{[%clk 0:02:35.4]} 32. Qg2 {[%clk 0:01:54.6]} 32... Rfxd3 {[%clk 0:02:29.1]} 33.
Qg5 {[%clk 0:01:44.1]} 33... Nf5 {[%clk 0:02:24.3]} 34. Qf4 {[%clk 0:01:35.8]}
34... Rd1 {[%clk 0:02:09.9]} 35. Qe5+ {[%clk 0:01:33]} 35... Kf7 {[%clk
0:02:07.8]} 36. Qh8 {[%clk 0:01:25]} 36... R1d2+ {[%clk 0:02:04.4]} 37. Kb3
{[%clk 0:01:23]} 37... Rxf2 {[%clk 0:02:00]} 38. Qh7+ {[%clk 0:01:15.1]} 38...
Ng7 {[%clk 0:01:58.8]} 39. Qh4 {[%clk 0:01:08.9]} 39... Rdd2 {[%clk 0:01:53.1]}
40. Qc4+ {[%clk 0:01:03.6]} 40... Ne6 {[%clk 0:01:50]} 41. Qe4 {[%clk 0:00:47]}
41... Rxa2 {[%clk 0:01:45.4]} 42. Qxb7+ {[%clk 0:00:45]} 42... Kf6 {[%clk
0:01:35.5]} 43. c6 {[%clk 0:00:39.3]} 43... g5 {[%clk 0:01:27.7]} 44. c7 {[%clk
0:00:37.5]} 44... Nxc7 {[%clk 0:01:26.4]} 45. Qxc7 {[%clk 0:00:35.5]} 45... g4
{[%clk 0:01:25.7]} 46. Qd6+ {[%clk 0:00:33.2]} 46... Kg5 {[%clk 0:01:24.1]} 47.
Qe5+ {[%clk 0:00:30.1]} 47... Kh4 {[%clk 0:01:19.7]} 48. Qh8+ {[%clk 0:00:27.3]}
48... Kg3 {[%clk 0:01:15.7]} 49. Qe5+ {[%clk 0:00:25.4]} 49... Kg2 {[%clk
0:01:10]} 50. Qe4+ {[%clk 0:00:23.9]} 50... Kg3 {[%clk 0:01:08]} 51. Qe5+ {[%clk
0:00:22.5]} 51... Kh3 {[%clk 0:01:05.7]} 52. Qh8+ {[%clk 0:00:20.7]} 52... Kg2
{[%clk 0:01:03.8]} 53. Qd4 {[%clk 0:00:16.2]} 53... g3 {[%clk 0:01:02]} 54. Qe4+
{[%clk 0:00:14.5]} 54... Kf1 {[%clk 0:00:49.1]} 55. Qb1+ {[%clk 0:00:12.7]}
55... Kg2 {[%clk 0:00:46.2]} 56. Qe4+ {[%clk 0:00:11.2]} 56... Kh3 {[%clk
0:00:44]} 57. Qh7+ {[%clk 0:00:10.1]} 57... Kg4 {[%clk 0:00:42.9]} 58. Qg6+
{[%clk 0:00:09.1]} 58... Kf4 {[%clk 0:00:41.9]} 59. Qf6+ {[%clk 0:00:08.3]}
59... Ke4 {[%clk 0:00:40.3]} 60. Qe6+ {[%clk 0:00:07.5]} 60... Kd3 {[%clk
0:00:37.8]} 61. Qd6+ {[%clk 0:00:06.5]} 61... Ke4 {[%clk 0:00:35.9]} 62. Qxg3
{[%clk 0:00:05.2]} 62... Rfb2+ {[%clk 0:00:34.3]} 63. Kc4 {[%clk 0:00:04]} 63...
Rg2 {[%clk 0:00:33.2]} 64. Qd3+ {[%clk 0:00:01.9]} 64... Ke5 {[%clk 0:00:31.8]}
65. Qd5+ {[%clk 0:00:00.7]} 65... Kf6 {[%clk 0:00:30.7]} 0-1

[Event "Live Chess"]
[Site "Chess.com"]
[Date "2023.05.21"]
[Round "-"]
[White "Singapourfeuj"]
[Black "OleksiyJr1"]
[Result "1-0"]
[WhiteElo "2183"]
[BlackElo "977"]
[TimeControl "300"]
[EndTime "3:45:13 PDT"]
[Termination "Singapourfeuj won by resignation"]

1. d4 {[%clk 0:04:59.4]} 1... Nf6 {[%clk 0:04:57]} 2. Nf3 {[%clk 0:04:58.2]}
2... g6 {[%clk 0:04:56.5]} 3. Nc3 {[%clk 0:04:57]} 3... Bg7 {[%clk 0:04:55.9]}
4. e4 {[%clk 0:04:56]} 4... d6 {[%clk 0:04:55.6]} 5. a4 {[%clk 0:04:54.3]} 5...
O-O {[%clk 0:04:54.3]} 6. Be2 {[%clk 0:04:53.3]} 6... e5 {[%clk 0:04:53.7]} 7.
O-O {[%clk 0:04:51.5]} 7... Nc6 {[%clk 0:04:52.4]} 8. d5 {[%clk 0:04:50.2]} 8...
Ne7 {[%clk 0:04:46.7]} 9. h3 {[%clk 0:04:47]} 9... Bd7 {[%clk 0:04:41.2]} 10. a5
{[%clk 0:04:45.6]} 10... a6 {[%clk 0:04:39]} 11. Be3 {[%clk 0:04:42.5]} 11... c6
{[%clk 0:04:36.1]} 12. Bb6 {[%clk 0:04:35.6]} 12... Qc8 {[%clk 0:04:31.3]} 13.
dxc6 {[%clk 0:04:34]} 13... Nxc6 {[%clk 0:04:29.7]} 14. Qxd6 {[%clk 0:04:30.3]}
14... Nb4 {[%clk 0:04:23]} 1-0